bitfinex-derivatives/quotes_SOLF0:USTF0_20250720
["timestamp","ask_amount","ask_price","bid_price","bid_amount"]
[1753014629817,2.96,180.45,180.42,3.11]
[1753014630521,2.96,180.45,180.43,5.5396]
[1753014630712,2.96,180.45,180.44,3.11]
[1753014631116,2.96,180.45,180.44,8.6495]
[1753014631316,2.96,180.45,180.44,3.11]
[1753014633225,2.96,180.45,180.43,5.5397]
[1753014633526,2.96,180.44,180.43,3.11]
[1753014633823,2.96,180.44,180.33,3.11]
[1753014634223,8.4996,180.44,180.41,5.5403]
[1753014634425,207.32966691,180.5,180.41,5.5403]
[1753014634625,2.96,180.42,180.41,5.5403]
[1753014635025,2.96,180.42,180.41,8.6503]
[1753014635325,2.96,180.44,180.42,5.5401]
[1753014635627,2.96,180.43,180.42,8.6501]
[1753014636228,2.96,180.45,180.35,3.11]
[1753014636928,5.5388,180.47,180.43,5.5398]
[1753014637130,2.96,180.44,180.43,5.5398]
[1753014637628,2.96,180.49,180.44,3.11]
[1753014637930,2.96,180.49,180.43,5.5398]
[1753014638127,5.5389,180.47,180.44,3.11]
[1753014638331,2.96,180.46,180.44,8.6495]
[1753014638531,2.96,180.45,180.44,8.6495]
[1753014639132,2.96,180.45,180.44,3.11]
[1753014640524,2.96,180.49,180.37,3.11]
[1753014640726,2.96,180.61,180.39,3.11]
[1753014641027,5.5363,180.55,180.52,3.11]
[1753014641228,2.96,180.53,180.52,3.11]
[1753014641730,2.96,180.53,180.52,8.6471]
[1753014641927,2.96,180.55,180.52,3.11]
[1753014642430,2.96,180.55,180.54,3.11]
[1753014644032,2.96,180.55,180.54,8.6465]
[1753014644930,2.96,180.57,180.54,8.6465]
[1753014645132,2.96,180.56,180.55,3.11]
[1753014645326,2.96,180.59,180.54,5.5365]
[1753014645529,2.96,180.58,180.57,3.11]
[1753014645931,2.96,180.62,180.57,3.11]
[1753014646229,2.96,180.61,180.45,3.11]
[1753014646434,2.96,180.61,180.46,3.11]
[1753014646932,2.96,180.61,180.58,3.11]
[1753014648834,2.96,180.61,180.55,3.11]
[1753014649332,5.5349,180.6,180.55,3.11]
[1753014649532,2.96,180.59,180.53,3.11]
[1753014650127,2.96,180.56,180.53,3.11]
[1753014651130,2.96,180.56,180.51,3.11]
[1753014651329,2.96,180.56,180.52,3.11]
[1753014651928,2.96,180.56,180.46,3.11]
[1753014652138,2.96,180.56,180.53,3.11]
[1753014652329,2.96,180.58,180.46,3.11]
[1753014652634,2.96,180.58,180.54,5.5363]
[1753014652835,2.96,180.57,180.54,5.5363]
[1753014653133,2.96,180.57,180.56,3.11]
[1753014653729,2.96,180.59,180.56,3.11]
[1753014653933,2.96,180.62,180.45,15.68287396]
[1753014654137,2.96,180.62,180.58,3.11]
[1753014655332,5.534,180.62,180.58,3.11]
[1753014655537,2.96,180.61,180.58,3.11]
[1753014657140,2.96,180.6,180.59,3.11]
[1753014657537,2.96,180.66,180.59,3.11]
[1753014658041,2.96,180.66,180.6,5.5345]
[1753014658241,2.96,180.66,180.61,3.22]
[1753014658435,5.5329,180.66,180.61,3.22]
[1753014658643,3.22,180.65,180.62,3.22]
[1753014659043,3.22,180.65,180.6,3.22]
[1753014659239,8.7531,180.65,180.61,3.22]
[1753014659437,3.22,180.64,180.61,3.22]
[1753014659944,3.22,180.64,180.58,3.22]
[1753014660244,3.22,180.64,180.58,8.7552]
[1753014661238,3.22,180.64,180.59,5.5349]
[1753014661443,208.84931869,180.69,180.59,5.5349]
[1753014661444,3.22,180.68,180.6,3.22]
[1753014661643,5.5333,180.65,180.6,3.22]
[1753014661840,3.22,180.64,180.61,3.22]
[1753014662739,5.5335,180.64,180.61,3.22]
[1753014662942,3.22,180.62,180.61,3.22]
[1753014664942,3.22,180.64,180.61,3.22]
[1753014665541,3.22,180.64,180.61,8.7542]
[1753014665746,3.22,180.64,180.61,5.5342]
[1753014666045,3.22,180.64,180.63,3.22]
[1753014667436,5.5323,180.68,180.63,8.7537]
[1753014667638,3.22,180.65,180.64,3.22]
[1753014667842,3.22,180.68,180.66,3.22]
[1753014668039,3.22,180.67,180.66,3.22]
[1753014668346,3.22,180.67,180.55,3.22]
[1753014668650,3.22,180.68,180.67,3.22]
[1753014669347,3.22,180.71,180.67,3.22]
[1753014669550,3.22,180.7,180.69,3.22]
[1753014669951,3.22,180.7,180.56,11.0718]
[1753014670153,3.22,180.69,180.68,3.22]
[1753014670449,3.22,180.76,180.68,3.22]
[1753014670851,5.531,180.73,180.68,3.22]
[1753014671055,3.22,180.72,180.69,3.22]
[1753014671656,3.22,180.72,180.66,3.22]
[1753014672048,3.22,180.69,180.67,3.22]
[1753014672452,3.22,180.68,180.67,3.22]
[1753014673158,3.22,180.7,180.67,3.22]
[1753014673454,3.22,180.71,180.67,3.22]
[1753014673649,3.22,180.71,180.69,3.22]
[1753014673949,3.22,180.76,180.69,3.22]
[1753014674349,3.22,180.75,180.72,3.22]
[1753014675557,3.22,180.76,180.73,3.22]
[1753014675756,3.22,180.8,180.73,3.22]
[1753014676452,3.22,180.8,180.76,5.5295]
[1753014676762,3.22,180.8,180.77,3.22]
[1753014677054,3.22,180.83,180.77,3.22]
[1753014678156,3.22,180.83,180.78,5.5291]
[1753014678357,3.22,180.82,180.79,3.22]
[1753014678759,3.22,180.81,180.8,3.22]
[1753014680163,3.22,180.81,180.68,3.22]
[1753014680862,3.22,180.81,180.72,3.22]
[1753014681262,3.22,180.81,180.72,5.531]
[1753014681459,3.22,180.81,180.73,3.22]
[1753014681660,5.5295,180.77,180.73,3.22]
[1753014681864,3.22,180.76,180.68,3.22]
[1753014682265,3.22,180.74,180.68,3.22]
[1753014682658,122.93,180.89,180.68,3.22]
[1753014682859,3.22,180.76,180.68,3.22]
[1753014683058,3.22,180.78,180.68,3.22]
[1753014685860,5.5307,180.74,180.68,8.7522]
[1753014686060,3.22,180.73,180.69,3.22]
[1753014686261,3.22,180.72,180.7,3.22]
[1753014687062,3.22,180.73,180.7,3.22]
[1753014687669,5.5307,180.73,180.7,3.22]
[1753014687967,3.22,180.71,180.7,3.22]
[1753014689260,3.22,180.71,180.64,2.96]
[1753014689563,5.5319,180.7,180.64,2.96]
[1753014689766,16.61,180.78,180.64,2.96]
[1753014689967,16.61,180.77,180.64,2.96]
[1753014690269,3.14,180.69,180.65,2.96]
[1753014690468,3.14,180.69,180.63,109.18]
[1753014690668,5.5323,180.68,180.63,5.5337]
[1753014690864,3.14,180.77,180.65,2.96]
[1753014691871,5.5321,180.69,180.65,8.4929]
[1753014692170,3.14,180.67,180.66,2.96]
[1753014692672,3.14,180.69,180.67,2.96]
[1753014692874,3.14,180.69,180.58,2.96]
[1753014693075,3.14,180.69,180.67,5.5323]
[1753014693374,3.14,180.69,180.58,2.96]
[1753014694871,3.14,180.69,180.65,5.5329]
[1753014695072,3.14,180.69,180.66,2.96]
[1753014695277,3.14,180.69,180.67,2.96]
[1753014695469,5.5317,180.7,180.67,2.96]
[1753014695670,331.96714455,180.79,180.6,2.96]
[1753014695870,3.14,180.71,180.6,2.96]
[1753014696270,3.14,180.71,180.64,2.96]
[1753014696869,3.14,180.71,180.68,2.96]
[1753014697376,3.14,180.7,180.68,2.96]
[1753014697576,3.14,180.7,180.69,2.96]
[1753014697883,3.14,180.71,180.7,2.96]
[1753014698076,3.14,180.71,180.59,106.2]
[1753014698373,3.14,180.7,180.69,2.96]
[1753014700581,3.14,180.7,180.69,8.4919]
[1753014700980,3.14,180.7,180.69,2.96]
[1753014701176,3.14,180.72,180.69,2.96]
[1753014701379,3.14,180.78,180.69,2.96]
[1753014701981,5.5304,180.74,180.69,8.4919]
[1753014702180,3.14,180.73,180.7,2.96]
[1753014702576,225.76714455,180.79,180.62,106.16]
[1753014702577,3.14,180.72,180.68,2.96]
[1753014702777,3.14,180.72,180.63,2.96]
[1753014703475,3.14,180.72,180.69,5.5318]
[1753014703681,5.5305,180.74,180.7,2.96]
[1753014703682,3.14,180.71,180.7,2.96]
[1753014704082,3.14,180.71,180.7,8.4916]
[1753014704784,3.14,180.73,180.72,2.96]
[1753014705785,5.5302,180.75,180.71,5.5311]
[1753014706086,3.14,180.74,180.73,2.96]
[1753014707284,3.14,180.73,180.71,5.5311]
[1753014707890,3.14,180.73,180.72,2.96]
[1753014708188,3.14,180.78,180.72,8.491]
[1753014708487,8.6693,180.78,180.73,5.5305]
[1753014708687,3.14,180.77,180.74,2.96]
[1753014708892,3.14,180.76,180.75,2.96]
[1753014709685,3.14,180.78,180.75,2.96]
[1753014710193,3.14,180.77,180.74,2.96]
[1753014710392,3.14,180.76,180.75,2.96]
[1753014711191,3.14,180.76,180.75,8.4901]
[1753014711893,3.14,180.78,180.76,2.96]
[1753014712087,3.14,180.78,180.77,2.96]
[1753014714187,3.14,180.8,180.79,2.96]
[1753014714592,3.14,180.8,180.68,4.59815581]
[1753014714793,3.14,180.8,180.69,2.96]
[1753014715683,3.14,180.8,180.78,5.5289]
[1753014715887,3.14,180.8,180.7,4.59815581]
[1753014716190,3.14,180.8,180.72,2.96]
[1753014716385,3.14,180.8,180.79,2.96]
[1753014717482,3.14,180.82,180.79,8.4889]
[1753014717687,3.14,180.81,180.8,2.96]
[1753014719494,3.17,180.82,180.8,2.94]
[1753014719695,3.17,180.82,180.8,8.4685]
[1753014719990,3.17,180.81,180.8,8.4685]
[1753014722799,3.17,180.81,180.8,2.94]
[1753014723797,3.17,180.81,180.78,8.469]
[1753014723998,3.17,180.81,180.7,2.94]
[1753014724697,3.17,180.81,180.8,2.94]
[1753014725297,3.17,180.81,180.8,8.4686]
[1753014725502,3.17,180.82,180.81,2.94]
[1753014725696,3.17,180.82,180.81,8.4683]
[1753014726500,6.13855672,180.93,180.83,2.94]
[1753014726698,3.17,180.84,180.83,2.94]
[1753014727301,3.17,180.84,180.8,2.94]
[1753014727506,3.17,180.84,180.72,2.94]
[1753014729803,5.5277,180.83,180.79,5.5288]
[1753014730006,3.17,180.82,180.77,2.94]
[1753014730208,3.17,180.82,180.75,2.94]
[1753014730999,3.17,180.82,180.73,5.5306]
[1753014731201,3.17,180.82,180.72,2.94]
[1753014731601,3.17,180.79,180.76,2.94]
[1753014732007,3.17,180.79,180.77,2.94]
[1753014732806,3.17,180.79,180.77,8.4694]
[1753014733305,3.17,180.78,180.77,8.4694]
[1753014733505,3.17,180.78,180.76,8.4697]
[1753014733702,3.17,180.78,180.69,105.96]
[1753014733906,3.17,180.78,180.74,2.94]
[1753014734109,3.17,180.78,180.75,5.53]
[1753014734310,3.17,180.78,180.75,2.94]
[1753014734613,3.17,180.85,180.7,2.94]
[1753014734803,3.17,180.79,180.76,8.4695]
[1753014735000,3.17,180.79,180.76,5.5295]
[1753014735310,3.17,180.78,180.76,5.5295]
[1753014736004,3.17,180.78,180.76,8.4695]
[1753014736200,3.17,180.78,180.77,5.5295]
[1753014736504,3.17,180.78,180.77,8.4695]
[1753014736704,3.17,180.78,180.77,5.5295]
[1753014738203,3.17,180.78,180.77,8.4695]
[1753014739513,3.17,180.86,180.78,2.94]
[1753014739706,3.17,180.83,180.78,2.94]
[1753014740512,5.5271,180.85,180.78,2.94]
[1753014740813,3.17,180.82,180.78,2.94]
[1753014741505,3.17,180.82,180.81,5.5283]
[1753014741704,3.17,180.82,180.81,8.4683]
[1753014742411,3.17,180.82,180.8,5.5284]
[1753014744118,8.698,180.82,180.79,8.4687]
[1753014744315,3.17,180.81,180.79,8.4687]
[1753014744515,3.17,180.81,180.79,2.94]
[1753014745013,5.5277,180.83,180.8,5.5283]
[1753014745516,6.13855672,180.89,180.8,5.5283]
[1753014745717,3.17,180.82,180.79,2.94]
[1753014746913,3.17,180.82,180.71,110.47967024]
[1753014746914,3.17,180.82,180.8,8.4685]
[1753014747115,3.17,180.81,180.8,2.94]
[1753014747520,3.17,180.81,180.8,8.4686]
[1753014748417,3.17,180.81,180.8,5.5286]
[1753014748718,5.5277,180.83,180.79,8.6388]
[1753014748916,3.11,180.8,180.79,8.6388]
[1753014751127,3.11,180.8,180.79,3.11]
[1753014751727,3.11,180.87,180.8,3.11]
[1753014753227,6.13855672,180.89,180.82,8.6379]
[1753014753228,3.11,180.84,180.82,8.6379]
[1753014754938,3.11,180.84,180.83,5.5276]
[1753014755532,3.11,180.84,180.82,8.6378]
[1753014756140,3.11,180.84,180.82,5.5278]
[1753014756337,3.11,180.84,180.83,5.5276]
[1753014757340,3.11,180.84,180.82,5.5279]
[1753014758438,6.13855672,180.84,180.75,3.11]
[1753014758634,3.11,180.83,180.75,3.11]
[1753014759235,5.5287,180.8,180.78,5.5292]
[1753014759441,3.11,180.79,180.78,5.5292]
[1753014760641,5.5289,180.79,180.77,5.5293]
[1753014760844,3.11,180.78,180.77,5.5293]
[1753014761436,3.11,180.78,180.77,8.6393]
[1753014761633,3.11,180.78,180.77,5.5293]
[1753014762746,5.5296,180.77,180.75,3.11]
[1753014762939,3.11,180.76,180.73,3.11]
[1753014763139,3.11,180.75,180.73,3.11]
[1753014763333,3.11,180.75,180.74,5.5303]
[1753014763534,3.11,180.75,180.74,8.6403]
[1753014763735,3.11,180.75,180.73,3.11]
[1753014764043,3.11,180.75,180.74,8.6404]
[1753014765643,5.5293,180.78,180.75,8.64]
[1753014765946,3.11,180.82,180.76,3.11]
[1753014766146,5.5284,180.81,180.76,3.11]
[1753014766342,5.5284,180.81,180.78,3.11]
[1753014766542,3.11,180.79,180.77,5.5292]
[1753014766947,3.11,180.79,180.78,3.11]
[1753014767444,3.11,180.79,180.78,8.6392]
[1753014767642,3.11,180.81,180.72,3.11]
[1753014767850,3.11,180.84,180.74,7.76066518]
[1753014768053,3.11,180.84,180.75,3.11]
[1753014768343,3.11,180.85,180.83,3.11]
[1753014768541,3.11,180.85,180.84,3.11]
[1753014768752,3.11,180.85,180.84,8.6371]
[1753014770151,3.11,180.85,180.84,3.11]
[1753014770352,3.11,180.85,180.81,3.11]
[1753014770852,8.6372,180.85,180.81,3.11]
[1753014771143,3.11,180.84,180.77,5.5293]
[1753014771344,3.11,180.84,180.75,3.11]
[1753014771552,3.11,180.83,180.75,3.11]
[1753014771754,3.11,180.83,180.81,5.5281]
[1753014772144,3.11,180.84,180.81,8.6381]
[1753014772452,3.11,180.84,180.82,5.5279]
[1753014773454,3.11,180.87,180.79,3.11]
[1753014774553,5.5275,180.84,180.81,5.5283]
[1753014774853,3.11,180.83,180.79,3.11]
[1753014775053,3.11,180.83,180.8,3.11]
[1753014775253,3.11,180.83,180.8,8.6384]
[1753014775550,8.6377,180.83,180.8,8.6384]
[1753014775751,3.11,180.82,180.8,3.11]
[1753014776053,3.11,180.82,180.74,3.11]
[1753014776446,3.11,180.82,180.78,5.529]
[1753014776652,3.11,180.82,180.8,3.11]
[1753014777155,5.5276,180.84,180.8,3.11]
[1753014777352,3.11,180.83,180.81,3.11]
[1753014777756,8.6379,180.83,180.8,3.11]
[1753014777949,5.5279,180.83,180.8,3.11]
[1753014778148,3.22,180.81,180.8,3.11]
[1753014778652,3.22,180.81,180.8,8.6386]
[1753014778852,3.22,180.82,180.81,3.11]
[1753014781058,6.13855672,180.89,180.81,3.11]
[1753014781264,3.22,180.86,180.81,3.11]
[1753014781763,3.22,180.86,180.85,3.11]
[1753014782152,6.13855672,180.91,180.85,3.11]
[1753014782351,3.22,180.87,180.85,3.11]
[1753014782757,3.22,180.87,180.86,3.11]
[1753014783256,206.69396338,180.92,180.86,3.11]
[1753014783469,3.22,180.91,180.79,3.11]
[1753014783856,3.22,180.91,180.85,3.11]
[1753014784258,3.22,180.88,180.86,3.11]
[1753014784464,3.22,180.87,180.86,3.11]
[1753014789864,5.5264,180.87,180.83,5.5276]
[1753014790164,3.22,180.85,180.83,5.5276]
[1753014790365,3.22,180.84,180.83,5.5276]
[1753014790564,3.22,180.93,180.84,5.5273]
[1753014790758,3.22,180.93,180.85,3.11]
[1753014790954,5.5259,180.89,180.85,3.11]
[1753014791159,6.13855672,180.94,180.85,5.5269]
[1753014791459,3.22,180.88,180.87,3.11]
[1753014792762,3.22,180.88,180.87,8.6364]
[1753014793065,3.22,180.88,180.87,3.11]
[1753014793466,3.22,180.88,180.85,8.637]
[1753014793766,3.22,180.88,180.86,3.11]
[1753014793963,3.22,180.94,180.78,3.11]
[1753014794166,378.84083965,180.95,180.78,3.11]
[1753014794167,3.22,180.92,180.78,3.11]
[1753014794464,3.22,180.9,180.81,3.11]
[1753014795065,3.22,180.87,180.83,5.5274]
[1753014795256,3.22,180.86,180.85,3.11]
[1753014796068,3.22,180.88,180.85,3.11]
[1753014796663,3.22,180.9,180.86,3.11]
[1753014797870,3.22,180.89,180.86,3.11]
[1753014798167,3.22,180.89,180.83,3.11]
[1753014798362,5.5262,180.88,180.84,5.5273]
[1753014798570,3.22,180.87,180.84,8.6373]
[1753014798870,3.22,180.87,180.84,3.11]
[1753014799767,3.22,180.86,180.85,3.11]
[1753014803366,3.22,180.92,180.85,3.11]
[1753014803766,3.22,180.88,180.86,3.11]
[1753014804374,8.7462,180.88,180.86,3.11]
[1753014804569,3.22,180.87,180.85,3.11]
[1753014805576,3.22,180.87,180.81,3.11]
[1753014806065,3.22,180.87,180.83,8.6376]
[1753014806273,3.22,180.87,180.81,3.11]
[1753014807375,5.5267,180.87,180.82,5.5279]
[1753014807671,3.22,180.86,180.83,3.11]
[1753014809873,8.7468,180.86,180.81,8.5182]
[1753014810176,3.24,180.85,180.82,2.99]
[1753014810571,3.24,180.85,180.83,2.99]
[1753014811877,3.24,180.84,180.82,2.99]
[1753014812074,3.24,180.83,180.82,2.99]
[1753014812377,3.24,180.88,180.82,2.99]
[1753014812571,5.5267,180.87,180.82,5.5278]
[1753014812772,3.24,180.86,180.83,2.99]
[1753014813178,3.24,180.86,180.84,2.99]
[1753014814074,3.24,180.86,180.85,2.99]
[1753014814271,3.24,180.88,180.85,8.5168]
[1753014814479,3.24,180.88,180.86,2.99]
[1753014814980,3.24,180.88,180.87,2.99]
[1753014819273,3.24,180.88,180.79,4.65066518]
[1753014819473,3.24,180.88,180.86,2.99]
[1753014820978,3.24,180.88,180.84,2.99]
[1753014821170,3.24,180.88,180.79,2.99]
[1753014821473,3.24,180.84,180.81,8.5181]
[1753014821978,3.24,180.84,180.81,5.5281]
[1753014822181,3.24,180.84,180.82,2.99]
[1753014822382,3.24,180.84,180.82,8.5179]
[1753014823282,3.24,180.83,180.82,8.5179]
[1753014825672,3.24,180.85,180.82,8.5179]
[1753014825877,3.24,180.84,180.83,2.99]
[1753014827180,3.24,180.84,180.83,8.5176]
[1753014827381,3.24,180.86,180.83,8.5176]
[1753014827582,3.24,180.85,180.84,2.99]
[1753014828985,3.24,180.85,180.83,2.99]
[1753014829886,3.24,180.85,180.82,8.5178]
[1753014830089,3.24,180.85,180.83,5.5276]
[1753014830785,3.24,180.85,180.83,8.5176]
[1753014831285,3.24,180.85,180.84,8.5173]
[1753014832882,3.24,180.85,180.82,5.5278]
[1753014833186,3.24,180.84,180.77,151.45125977]
[1753014833587,3.24,180.84,180.83,8.5176]
[1753014837886,3.24,180.84,180.83,5.5276]
[1753014838580,3.24,180.84,180.83,8.6176]
[1753014838782,3.24,180.84,180.83,5.5276]
[1753014838987,3.24,180.84,180.82,5.5278]
[1753014839393,3.24,180.84,180.82,8.6178]
[1753014839697,3.24,180.84,180.77,151.45125977]
[1753014839698,3.24,180.84,180.83,5.5276]
[1753014840089,3.24,180.84,180.82,5.5277]
[1753014840787,3.24,180.84,180.81,3.09]
[1753014841090,3.24,180.84,180.82,3.09]
[1753014841692,3.24,180.84,180.78,3.09]
[1753014842891,3.24,180.84,180.82,5.5279]
[1753014843592,8.7674,180.84,180.81,5.5281]
[1753014843789,3.14,180.83,180.8,3.09]
[1753014843990,3.14,180.83,180.79,3.09]
[1753014844191,3.14,180.83,180.8,5.5284]
[1753014844689,5.5281,180.82,180.79,5.5287]
[1753014844889,3.14,180.81,180.79,5.5287]
[1753014845188,3.14,180.81,180.79,8.6187]
[1753014845388,3.14,180.81,180.8,5.5285]
[1753014845587,3.14,180.81,180.8,8.6185]
[1753014845787,3.14,180.81,180.8,5.5285]
[1753014845986,3.14,180.81,180.79,8.6188]
[1753014846191,3.14,180.81,180.79,5.5288]
[1753014846692,3.14,180.81,180.78,8.6191]
[1753014847288,9.27855672,180.83,180.73,3.09]
[1753014847482,3.14,180.82,180.73,3.09]
[1753014847791,3.14,180.79,180.76,5.5296]
[1753014848091,3.14,180.79,180.76,3.09]
[1753014848592,3.14,180.79,180.77,5.5294]
[1753014849293,3.14,180.79,180.76,3.09]
[1753014849294,3.14,180.79,180.76,5.5296]
[1753014849684,3.14,180.79,180.75,3.09]
[1753014850189,3.14,180.83,180.75,3.09]
[1753014850398,5.5281,180.82,180.78,5.5289]
[1753014850696,3.14,180.81,180.78,5.5289]
[1753014852094,3.14,180.8,180.78,5.5289]
[1753014853694,6.13855672,180.85,180.79,3.09]
[1753014853995,3.14,180.86,180.79,3.09]
[1753014854595,3.14,180.83,180.81,3.09]
[1753014854795,3.14,180.87,180.81,3.09]
[1753014855595,3.14,180.87,180.86,5.5267]
[1753014855795,3.14,180.87,180.85,3.09]
[1753014856094,3.14,180.87,180.85,8.6168]
[1753014857192,3.14,180.89,180.86,8.6166]
[1753014857399,3.14,180.9,180.87,3.09]
[1753014857597,3.14,180.9,180.87,5.5262]
[1753014857899,3.14,180.9,180.88,3.09]
[1753014860698,3.14,180.9,180.86,5.5266]
[1753014860905,3.14,180.9,180.87,3.09]
[1753014862000,3.14,180.9,180.86,5.5266]
[1753014862204,3.14,180.9,180.88,3.09]
[1753014862705,3.14,180.91,180.78,15.70886518]
[1753014862898,3.14,180.91,180.79,3.09]
[1753014863896,3.14,180.9,180.86,5.5265]
[1753014864104,3.14,180.9,180.87,3.09]
[1753014867604,3.14,180.89,180.77,4.65066518]
[1753014867800,3.14,180.89,180.78,3.09]
[1753014868298,2.98,180.87,180.78,3.09]
[1753014868903,2.98,180.88,180.76,2.97]
[1753014869102,2.98,180.88,180.76,4.65066518]
[1753014869303,2.98,180.88,180.84,5.5271]
[1753014869504,2.98,180.88,180.77,2.97]
[1753014870006,2.98,180.88,180.77,4.65066518]
[1753014870207,2.98,180.88,180.78,2.97]
[1753014871109,2.98,180.89,180.87,2.97]
[1753014872210,2.98,180.88,180.87,2.97]
[1753014877116,2.98,180.88,180.83,2.97]
[1753014877320,2.98,180.88,180.84,2.97]
[1753014877713,5.5263,180.88,180.84,2.97]
[1753014877917,2.98,180.87,180.84,2.97]
[1753014878115,2.98,180.87,180.85,2.97]
[1753014880122,2.98,180.87,180.86,2.97]
[1753014880420,2.98,180.87,180.83,5.5275]
[1753014880723,2.98,180.86,180.85,2.97]
[1753014884524,2.98,180.86,180.85,8.497]
[1753014884715,2.98,180.89,180.85,2.97]
[1753014884916,2.98,180.92,180.9,5.5253]
[1753014885122,2.98,180.92,180.91,2.97]
[1753014885830,2.98,180.92,180.91,8.4952]
[1753014886327,2.98,180.92,180.91,2.97]
[1753014887225,2.98,180.92,180.9,5.5254]
[1753014887525,2.98,180.92,180.89,2.97]
[1753014887925,2.98,180.92,180.89,5.5256]
[1753014888127,2.98,180.91,180.9,2.97]
[1753014888928,2.98,180.91,180.9,8.4955]
[1753014889526,2.98,180.93,180.9,8.4955]
[1753014889731,215.10537994,180.97,180.91,2.97]
[1753014889732,2.98,180.92,180.91,2.97]
[1753014890528,2.98,180.98,180.91,2.97]
[1753014890728,104.86,180.98,180.91,2.97]
[1753014890930,2.98,180.97,180.91,2.97]
[1753014892326,2.98,180.97,180.94,2.97]
[1753014892529,2.98,180.97,180.95,2.97]
[1753014893532,2.98,180.97,180.96,2.97]
[1753014895130,2.98,180.96,180.95,2.97]
[1753014897833,2.98,180.96,180.95,8.494]
[1753014898034,5.5228,180.99,180.95,5.524]
[1753014898229,3.17,180.97,180.96,3.01]
[1753014898631,3.17,180.97,180.96,5.5237]
[1753014898833,3.17,180.97,180.96,8.5337]
[1753014899136,3.17,181.02,181.0,5.5222]
[1753014899331,3.17,181.02,181.01,3.01]
[1753014899728,5.5207,181.06,181.01,5.5221]
[1753014899925,3.17,181.05,181.02,3.01]
[1753014900127,3.17,181.05,180.9,4.65066518]
[1753014900329,6.13855672,181.08,180.93,3.01]
[1753014900527,6.695e-05,181.13,180.96,22.094]
[1753014900737,7.70997024,181.15,181.0,11.0447]
[1753014900937,3.17,181.14,181.01,3.01]
[1753014901143,3.17,181.14,181.02,3.01]
[1753014901436,4.53997024,181.15,181.04,3.01]